[Event "Uruguayan Championship 2022"]
[Site "Montevideo"]
[Date "2022.04.08"]
[Round "1.1"]
[White "Carvalho, Guillermo"]
[Black "Diaz Hollemaert, Nahuel"]
[Result "0-1"]
[ECO "A10"]
[WhiteElo "2171"]
[BlackElo "2439"]
[Annotator "TA"]
[PlyCount "70"]
[EventDate "2022.04.08"]
[EventType "tourn"]
[EventRounds "11"]
[EventCountry "URU"]
[SourceTitle "playchess.com"]
[Source "ChessBase"]
[SourceQuality "1"]
[TimeControl "40/5400+30:1800+30"]

{[%evp 9,70,18,18,8,16,16,18,22,20,12,14,0,5,-35,-28,-30,-27,-53,-43,-85,-68,-67,-67,-68,-67,-67,-68,-75,-68,-62,-53,-74,-56,-54,-54,-54,-54,-57,-59,-51,-36,-182,-180,-162,-107,-294,-254,-290,-303,-432,-416,-1316,-939,-1289,-910,-1404,-997,-5822,-2295,-29982,-5814,-29995,-29996]} 1. c4 {[%emt 0:00:12]} b6 {[%emt 0:02:00]} 2. Nc3 {[%emt 0:00:49]} Bb7 {[%emt 0:01:05]} 3. e4 {[%emt 0:00:37]} e5 {[%emt 0:03:36]} 4. Nf3 {[%emt 0:01:50]} Nc6 {[%emt 0:06:10]} 5. Be2 {[%emt 0:02:20]} Nf6 {[%emt 0:03:41]} 6. d3 {[%emt 0:01:43] A10: English Opening: Unusual Replies for Black.} h6 {[%emt 0:04:54]} 7. a3 {[%emt 0:03:57] [#]} g6 $146 {[%emt 0:04:19]} ({Predecessor:} 7... Bc5 8. h3 a5 9. Qc2 Qe7 10. Nb5 d6 11. Nh4 Bxf2+ 12. Kxf2 Nxe4+ 13. dxe4 Qxh4+ {½-½ (28) Habakuk,M-Tremblay,M (1466) Rynia 2013}) 8. O-O {[%emt 0:02:14] The position is equal.} Bg7 {[%emt 0:00:07]} 9. h3 {[%emt 0:20:45]} O-O {[%emt 0:15:16]} 10. Nd5 {[%emt 0:07:44]} d6 {[%emt 0:07:49]} 11. Nxf6+ {[%emt 0:06:20]} Qxf6 {[%emt 0:00:23]} 12. Be3 {[%emt 0:00:12]} Qe7 {[%emt 0:08:22]} 13. Ne1 {[%emt 0:03:46]} f5 {[%emt 0:03:13]} 14. f3 {[%emt 0:00:22]} Nd8 {[%emt 0:08:42]} 15. Qd2 {[%emt 0:01:47]} f4 {[%emt 0:09:07]} 16. Bf2 {[%emt 0:00:09]} Ne6 {[%emt 0:00:14]} 17. Nc2 {[%emt 0:00:40]} c5 {[%emt 0:00:42] Against d4} 18. b4 {[%emt 0:01:24]} Bf6 {[%emt 0:04:07]} 19. Rfb1 {[%emt 0:00:35]} Bc8 {[%emt 0:00:46] &Nero is more active.} 20. Bf1 {[%emt 0:01:22]} h5 {[%emt 0:00:33]} 21. a4 {[%emt 0:00:19]} a5 {[%emt 0:03:00]} 22. bxa5 {[%emt 0:00:32]} bxa5 {[%emt 0:00:01]} 23. Rb5 {[%emt 0:04:19]} Qc7 {[%emt 0:01:44]} 24. Be1 {[%emt 0:06:16][%cal Rb5a5]} Bd8 {[%emt 0:00:04]} 25. Qc3 {[%emt 0:01:26]} ({Better is} 25. Be2 $15) 25... g5 $1 $19 {[%emt 0:02:09]} 26. Be2 {[%emt 0:01:15]} Qg7 {[%emt 0:02:15]} (26... g4 $19 {...gxh3 is the strong threat.} 27. fxg4 Ng5) 27. Bf2 $2 {[%emt 0:05:16]} (27. Rab1 $17) 27... g4 $1 {[%emt 0:06:06]} 28. hxg4 {[%emt 0:00:09]} ({Not} 28. fxg4 Nc7 29. Qb3 (29. Rxa5 $2 Nd5 $19) 29... hxg4 30. hxg4 Be7 $15) 28... hxg4 {[%emt 0:00:32]} 29. Kf1 {[%emt 0:00:14]} (29. fxg4 {keeps fighting.} Nc7 30. Qb3 (30. Rxa5 $2 Nd5 $19)) 29... Qh6 {[%emt 0:01:49]} 30. fxg4 {[%emt 0:09:33]} (30. Ke1 $142) 30... Qh1+ {[%emt 0:00:05]} 31. Bg1 {[%emt 0:00:12]} Ng5 {[%emt 0:00:53]} 32. Ne1 {[%emt 0:02:12]} f3 {[%emt 0:00:40]} 33. Nxf3 {[%emt 0:01:19]} Bxg4 {[%emt 0:00:33]} (33... Nxf3 $142 34. Bxf3 Bxg4) 34. Ra2 {[%emt 0:02:25] [#]} Nh3 $1 {[%emt 0:01:27][%mdl 512]} 35. gxh3 {[%emt 0:00:39] [#]} (35. Ke1 Nxg1) 35... Bh4 $1 {[%emt 0:00:09] Weighted Error Value: White=1.11/Black=0.61} 0-1

[Event "Uruguayan Championship 2022"]
[Site "Montevideo"]
[Date "2022.04.08"]
[Round "1.2"]
[White "Granara Barreto, Sebastian"]
[Black "Vazquez, Facundo"]
[Result "0-1"]
[ECO "B40"]
[WhiteElo "2131"]
[BlackElo "2319"]
[Annotator "NA RC"]
[PlyCount "82"]
[EventDate "2022.04.08"]
[EventType "tourn"]
[EventRounds "11"]
[EventCountry "URU"]
[SourceTitle "playchess.com"]
[Source "ChessBase"]
[SourceQuality "1"]
[TimeControl "40/5400+30:1800+30"]

1. e4 {[%emt 0:00:06]} c5 {[%emt 0:00:13]} 2. Nf3 {[%emt 0:00:15]} e6 {[%emt 0:00:18]} 3. c3 {[%emt 0:01:02]} Nf6 {[%emt 0:01:20]} 4. e5 {[%emt 0:00:35]} Nd5 {[%emt 0:00:13]} 5. g3 {[%emt 0:00:37]} d6 {[%emt 0:00:18]} 6. exd6 {[%emt 0:01:32]} b6 {[%emt 0:02:02]} 7. Bg2 {[%emt 0:02:40]} Bb7 {[%emt 0:02:08]} 8. O-O {[%emt 0:00:10]} Bxd6 {[%emt 0:00:27]} 9. d4 {[%emt 0:01:08]} Nc6 {[%emt 0:09:11]} 10. c4 {[%emt 0:05:08]} Nf6 {[%emt 0:05:52]} 11. Nc3 {[%emt 0:23:31]} O-O {[%emt 0:05:21]} 12. Bg5 {[%emt 0:04:31]} Na5 {[%emt 0:11:50]} 13. b3 {[%emt 0:18:08]} cxd4 {[%emt 0:02:01]} 14. Nxd4 {[%emt 0:02:20]} Bxg2 {[%emt 0:05:23]} 15. Kxg2 {[%emt 0:00:12]} Be5 {[%emt 0:01:04]} 16. Nde2 {[%emt 0:04:18]} Qc7 {[%emt 0:02:33]} 17. Qc2 {[%emt 0:03:02]} Qb7+ {[%emt 0:08:02]} 18. Kg1 {[%emt 0:01:19]} Nc6 {[%emt 0:02:35]} 19. Bxf6 {[%emt 0:11:11]} Nb4 {[%emt 0:05:10]} 20. Qe4 {[%emt 0:00:10]} Qxe4 {[%emt 0:00:33]} 21. Nxe4 {[%emt 0:00:04]} gxf6 {[%emt 0:00:55]} 22. Rad1 {[%emt 0:01:32]} f5 {[%emt 0:03:53]} 23. N4c3 {[%emt 0:07:38]} Rfd8 {[%emt 0:02:35]} 24. f4 {[%emt 0:02:54]} Bd6 {[%emt 0:01:43]} 25. Kg2 {[%emt 0:00:37]} Nc2 {[%emt 0:05:04]} 26. Kf3 {[%emt 0:00:49]} Bc5 {[%emt 0:00:30]} 27. Na4 {[%emt 0:02:04]} Ne3 {[%emt 0:01:43]} 28. Rxd8+ {[%emt 0:00:06]} Rxd8 {[%emt 0:00:06]} 29. Rc1 {[%emt 0:00:27]} Ng4 {[%emt 0:02:20]} 30. Nxc5 {[%emt 0:04:24]} bxc5 {[%emt 0:00:04]} 31. h3 {[%emt 0:00:15]} Rd3+ {[%emt 0:01:17]} 32. Kg2 {[%emt 0:00:08]} Nf6 {[%emt 0:01:55]} 33. b4 {[%emt 0:02:50]} cxb4 {[%emt 0:03:54]} 34. c5 {[%emt 0:00:05]} Nd5 {[%emt 0:00:32]} 35. c6 {[%emt 0:00:23]} Nc7 {[%emt 0:00:27]} 36. Rc2 {[%emt 0:00:59]} Kf8 {[%emt 0:02:37]} 37. Kf2 {[%emt 0:00:15]} Ke7 {[%emt 0:00:49]} 38. Rc4 {[%emt 0:01:11]} a5 {[%emt 0:01:05]} 39. Rc5 {[%emt 0:00:40]} Rd5 {[%emt 0:01:37]} 40. Rc2 {[%emt 0:00:08]} Kd6 {[%emt 0:01:13]} 41. Nc1 {[%emt 0:30:28]} Rc5 {[%emt 0:36:14]} 0-1

[Event "Uruguayan Championship 2022"]
[Site "Montevideo"]
[Date "2022.04.08"]
[Round "1.3"]
[White "Palacio, Enzo"]
[Black "Vaz Lacuesta, Leonardo"]
[Result "0-1"]
[ECO "C05"]
[WhiteElo "1896"]
[BlackElo "2018"]
[Annotator "NA RC"]
[PlyCount "58"]
[EventDate "2022.04.08"]
[EventType "tourn"]
[EventRounds "11"]
[EventCountry "URU"]
[SourceTitle "playchess.com"]
[Source "ChessBase"]
[SourceQuality "1"]
[TimeControl "40/5400+30:1800+30"]

1. e4 {[%emt 0:00:03]} e6 {[%emt 0:00:31]} 2. d4 {[%emt 0:00:07]} d5 {[%emt 0:00:03]} 3. Nd2 {[%emt 0:00:07]} Nf6 {[%emt 0:00:29]} 4. e5 {[%emt 0:00:06]} Nfd7 {[%emt 0:00:03]} 5. Bd3 {[%emt 0:00:05]} c5 {[%emt 0:00:40]} 6. c3 {[%emt 0:00:06]} Nc6 {[%emt 0:00:23]} 7. Ne2 {[%emt 0:00:08]} Qb6 {[%emt 0:00:37]} 8. O-O {[%emt 0:03:22]} cxd4 {[%emt 0:06:15]} 9. cxd4 {[%emt 0:00:07]} f6 {[%emt 0:03:41]} 10. Nf4 {[%emt 0:10:56]} Nxd4 {[%emt 0:08:44]} 11. Qh5+ {[%emt 0:01:35]} Ke7 {[%emt 0:01:21]} 12. Ng6+ {[%emt 0:09:37]} hxg6 {[%emt 0:00:05]} 13. exf6+ {[%emt 0:00:09]} Nxf6 {[%emt 0:00:29]} 14. Qxh8 {[%emt 0:00:10]} Bd7 {[%emt 0:07:45]} 15. b3 {[%emt 0:09:21]} Qa5 {[%emt 0:33:58]} 16. a4 {[%emt 0:20:54]} Kf7 {[%emt 0:02:04]} 17. Qh4 {[%emt 0:11:52]} Qc3 {[%emt 0:04:28]} 18. Bxg6+ {[%emt 0:25:51]} Kxg6 {[%emt 0:00:27]} 19. Qg3+ {[%emt 0:00:43]} Qxg3 {[%emt 0:00:27]} 20. hxg3 {[%emt 0:00:14]} Bc5 {[%emt 0:04:07]} 21. Rd1 {[%emt 0:02:25]} Ng4 {[%emt 0:03:50]} 22. Bb2 {[%emt 0:02:14]} Nf5 {[%emt 0:01:44]} 23. Kf1 {[%emt 0:01:12]} Bxf2 {[%emt 0:00:14]} 24. Be5 {[%emt 0:00:29]} Nfe3+ {[%emt 0:03:52]} 25. Ke2 {[%emt 0:00:07]} Nxd1 {[%emt 0:00:21]} 26. Rxd1 {[%emt 0:00:04]} Nxe5 {[%emt 0:00:08]} 27. Kxf2 {[%emt 0:00:03]} Rc8 {[%emt 0:00:38]} 28. Ke3 {[%emt 0:00:49]} Ng4+ {[%emt 0:01:57]} 29. Kd4 {[%emt 0:00:57]} e5+ {[%emt 0:00:05]} 0-1

[Event "Uruguayan Championship 2022"]
[Site "Montevideo"]
[Date "2022.04.08"]
[Round "1.4"]
[White "Rodi, Luis Ernesto"]
[Black "Hoffman, Alejandro"]
[Result "0-1"]
[ECO "C41"]
[WhiteElo "2347"]
[BlackElo "2403"]
[Annotator "RC"]
[PlyCount "74"]
[EventDate "2022.04.08"]
[EventType "tourn"]
[EventRounds "11"]
[EventCountry "URU"]
[SourceTitle "playchess.com"]
[Source "ChessBase"]
[SourceQuality "1"]
[TimeControl "40/5400+30:1800+30"]

1. e4 {[%emt 0:00:18]} d6 {[%emt 0:00:18]} 2. d4 {[%emt 0:00:12]} Nf6 {[%emt 0:00:08]} 3. Nc3 {[%emt 0:00:10]} e5 {[%emt 0:00:16]} 4. Nf3 {[%emt 0:00:58]} Nbd7 {[%emt 0:00:22]} 5. Rg1 {[%emt 0:00:19]} c6 {[%emt 0:30:46]} 6. g4 {[%emt 0:00:39]} Qa5 {[%emt 0:01:35]} 7. Bd2 {[%emt 0:03:23]} Qb6 {[%emt 0:06:37]} 8. g5 {[%emt 0:02:17]} Nh5 {[%emt 0:01:38]} 9. dxe5 {[%emt 0:00:34]} dxe5 {[%emt 0:01:18]} 10. Nxe5 {[%emt 0:28:12]} Nxe5 {[%emt 0:00:57]} 11. Qxh5 {[%emt 0:00:07]} Qxb2 {[%emt 0:16:35]} 12. Rb1 {[%emt 0:01:40]} Qxc2 {[%emt 0:08:21]} 13. g6 {[%emt 0:01:29]} Nxg6 {[%emt 0:01:51]} 14. Rxg6 {[%emt 0:03:56]} fxg6 {[%emt 0:00:06]} 15. Qe5+ {[%emt 0:00:07]} Be7 {[%emt 0:01:03]} 16. Bc4 {[%emt 0:03:02]} Rf8 {[%emt 0:04:36]} 17. Qg3 {[%emt 0:05:33]} Bc5 {[%emt 0:12:30]} 18. f4 {[%emt 0:05:23]} Bd6 {[%emt 0:00:42]} 19. Bb3 {[%emt 0:02:32]} Qxd2+ {[%emt 0:00:19]} 20. Kxd2 {[%emt 0:00:05]} Bxf4+ {[%emt 0:00:06]} 21. Ke2 {[%emt 0:08:15]} Bxg3 {[%emt 0:00:09]} 22. hxg3 {[%emt 0:00:03]} Bg4+ {[%emt 0:00:10]} 23. Ke1 {[%emt 0:00:03]} O-O-O {[%emt 0:00:56]} 24. Bc4 {[%emt 0:00:54]} b5 {[%emt 0:00:41]} 25. Bf1 {[%emt 0:00:33]} h5 {[%emt 0:00:54]} 26. a4 {[%emt 0:00:10]} a6 {[%emt 0:00:25]} 27. axb5 {[%emt 0:00:07]} axb5 {[%emt 0:00:03]} 28. e5 {[%emt 0:01:56]} Rde8 {[%emt 0:00:51]} 29. Ra1 {[%emt 0:01:03]} Rxe5+ {[%emt 0:00:11]} 30. Kd2 {[%emt 0:00:06]} Rf2+ {[%emt 0:02:08]} 31. Kd3 {[%emt 0:00:10]} Ref5 {[%emt 0:00:57]} 32. Be2 {[%emt 0:02:09]} Rxe2 {[%emt 0:00:18]} 33. Nxe2 {[%emt 0:00:51]} Rd5+ {[%emt 0:00:11]} 34. Nd4 {[%emt 0:01:00]} c5 {[%emt 0:00:09]} 35. Ke4 {[%emt 0:00:06]} Rxd4+ {[%emt 0:00:06]} 36. Ke5 {[%emt 0:00:02]} Rd3 {[%emt 0:01:14]} 37. Ra7 {[%emt 0:00:33]} c4 {[%emt 0:01:02]} 0-1

[Event "Uruguayan Championship 2022"]
[Site "Montevideo"]
[Date "2022.04.08"]
[Round "1.5"]
[White "Lopez Azambuja, Nicolas"]
[Black "Coppola, Claudio"]
[Result "1/2-1/2"]
[ECO "A29"]
[WhiteElo "2318"]
[BlackElo "2285"]
[Annotator "NA RC"]
[PlyCount "46"]
[EventDate "2022.04.08"]
[EventType "tourn"]
[EventRounds "11"]
[EventCountry "URU"]
[SourceTitle "playchess.com"]
[Source "ChessBase"]
[SourceQuality "1"]
[TimeControl "40/5400+30:1800+30"]

1. c4 {[%emt 0:00:03]} e5 {[%emt 0:08:30]} 2. Nc3 {[%emt 0:00:24]} Nc6 {[%emt 0:00:36]} 3. Nf3 {[%emt 0:00:41]} Nf6 {[%emt 0:00:12]} 4. g3 {[%emt 0:00:59]} Nd4 {[%emt 0:00:10]} 5. Bg2 {[%emt 0:00:46]} Nxf3+ {[%emt 0:04:17]} 6. Bxf3 {[%emt 0:00:13]} Bb4 {[%emt 0:04:31]} 7. Nd5 {[%emt 0:17:48]} Nxd5 {[%emt 0:07:17]} 8. cxd5 {[%emt 0:00:16]} O-O {[%emt 0:00:09]} 9. O-O {[%emt 0:00:43]} Bc5 {[%emt 0:05:40]} 10. b3 {[%emt 0:03:06]} d6 {[%emt 0:14:55]} 11. Bb2 {[%emt 0:08:05]} Bh3 {[%emt 0:01:29]} 12. Bg2 {[%emt 0:02:23]} Bxg2 {[%emt 0:01:49]} 13. Kxg2 {[%emt 0:00:05]} c6 {[%emt 0:05:18]} 14. dxc6 {[%emt 0:06:16]} bxc6 {[%emt 0:01:22]} 15. d4 {[%emt 0:00:40]} Bb6 {[%emt 0:02:10]} 16. Rc1 {[%emt 0:14:11]} Rc8 {[%emt 0:01:16]} 17. dxe5 {[%emt 0:04:39]} dxe5 {[%emt 0:00:21]} 18. Qxd8 {[%emt 0:02:15]} Rfxd8 {[%emt 0:00:49]} 19. Rfd1 {[%emt 0:02:31]} f6 {[%emt 0:00:37]} 20. Kf3 {[%emt 0:01:59]} Kf7 {[%emt 0:01:02]} 21. e3 {[%emt 0:01:31]} Rxd1 {[%emt 0:07:31]} 22. Rxd1 {[%emt 0:00:03]} Rd8 {[%emt 0:00:09]} 23. Rxd8 {[%emt 0:02:26]} Bxd8 {[%emt 0:00:03]} 1/2-1/2

[Event "Uruguayan Championship 2022"]
[Site "Montevideo"]
[Date "2022.04.08"]
[Round "1.6"]
[White "Roselli Mailhe, Bernardo"]
[Black "Carbone, Diego"]
[Result "1-0"]
[ECO "A48"]
[WhiteElo "2426"]
[BlackElo "2272"]
[Annotator "TA"]
[PlyCount "67"]
[EventDate "2022.04.08"]
[EventType "tourn"]
[EventRounds "11"]
[EventCountry "URU"]
[SourceTitle "playchess.com"]
[Source "ChessBase"]
[SourceQuality "1"]
[TimeControl "40/5400+30:1800+30"]

{[%evp 12,67,-27,-13,-18,-32,0,-26,-7,-26,0,-55,-19,-18,0,0,0,0,0,0,0,0,0,0,0,0,0,0,0,-10,10,0,0,-19,-12,-62,-55,-46,-29,-45,0,-33,-1,-77,-33,-31,-31,-31,-32,-59,-33,-104,-82,-93,-66,-224,0,0]} 1. d4 {[%emt 0:00:28]} Nf6 {[%emt 0:00:10]} 2. Nf3 {[%emt 0:00:55]} g6 {[%emt 0:00:28]} 3. Bg5 {[%emt 0:00:16]} Bg7 {[%emt 0:00:28]} 4. Nbd2 {[%emt 0:00:35]} O-O {[%emt 0:01:11]} 5. e4 {[%emt 0:01:15][%cal Be2e4,Be4e5][%mdl 32]} d5 {[%emt 0:00:46]} 6. e5 {[%emt 0:21:02]} Ne4 {[%emt 0:00:19]} 7. Be3 {[%emt 0:00:42]} c5 {[%emt 0:14:17] A48: 1 d4 Nf6 2 Nf3 g6: Torre, London and Colle Systems.} 8. c3 {[%emt 0:01:16]} Nc6 {[%emt 0:03:35]} 9. Be2 {[%emt 0:04:51]} Qb6 {[%emt 0:10:05] Black has an edge.} 10. Qb3 {[%emt 0:06:27] [#]} Nxd2 $146 {[%emt 0:09:15]} ({Predecessor:} 10... cxd4 11. cxd4 Qxb3 12. Nxb3 Nb4 13. Kd1 f5 14. g3 f4 15. gxf4 Bh6 16. a3 Nc6 {0-1 (44) Geldyeva,M (2285)-Shvayger,Y (2408) Baku 2016}) 11. Bxd2 {[%emt 0:07:25]} (11. Nxd2 $11 Be6 12. f4) 11... Bf5 {[%emt 0:12:28][%cal Rc5d4]} 12. O-O {[%emt 0:08:57]} cxd4 {[%emt 0:04:15] [#] Strongly threatening ...Qxb3.} 13. Qxb6 {[%emt 0:00:44]} axb6 {[%emt 0:00:09]} 14. cxd4 {[%emt 0:00:05]} f6 {[%emt 0:02:43]} 15. exf6 {[%emt 0:05:11]} Bxf6 {[%emt 0:04:29]} 16. Bc3 {[%emt 0:02:07]} Rfd8 {[%emt 0:02:40]} 17. Rfd1 {[%emt 0:02:07]} g5 {[%emt 0:03:08]} 18. h3 {[%emt 0:02:59]} g4 {[%emt 0:07:19]} 19. hxg4 {[%emt 0:01:15]} Bxg4 {[%emt 0:00:01]} 20. Kf1 {[%emt 0:01:11]} Kg7 {[%emt 0:01:18]} 21. Ng1 {[%emt 0:03:22]} h5 {[%emt 0:04:07][%cal Bh7h5,Bh5h4][%mdl 32]} 22. f3 {[%emt 0:05:47]} Bf5 {[%emt 0:00:59]} 23. f4 {[%emt 0:02:21]} (23. Bd3 $11 Bxd3+ 24. Rxd3) 23... h4 $15 {[%emt 0:00:35]} 24. Nf3 {[%emt 0:01:27]} Rh8 {[%emt 0:04:06]} 25. Kf2 {[%emt 0:00:36]} Kf7 {[%emt 0:00:52]} 26. Rh1 {[%emt 0:03:32]} Be4 {[%emt 0:03:10]} 27. Rh2 {[%emt 0:01:58]} (27. Ne5+ $11 Bxe5 28. fxe5) 27... e6 {[%emt 0:01:23]} (27... Bxf3 $5 28. Bxf3 e6 $17) 28. Ne5+ {[%emt 0:08:00]} Nxe5 {[%emt 0:06:18]} 29. fxe5 {[%emt 0:01:41]} Bg5 {[%emt 0:00:14]} 30. Bg4 {[%emt 0:00:17]} Rag8 {[%emt 0:01:28] And now ...Bf4 would win.} 31. Bh3 {[%emt 0:01:53]} (31. Bf3 $1 $15) 31... Bf4 {[%emt 0:00:34]} 32. Rhh1 {[%emt 0:00:05]} Rg3 {[%emt 0:01:43] Hoping for ...Rhg8.} 33. Rhf1 $2 {[%emt 0:03:22] [#]} (33. Raf1 $1 $15 Ke8 34. Ke1) 33... Rhg8 $2 {[%emt 0:01:53]} (33... Ke8 $1 $19 {...Rf8 is the strong threat.} 34. Rae1 Bd3) 34. Ke1 {[%emt 0:00:34][%mdl 32768] Weighted Error Value: White=0.26 (precise) /Black=0.22 (precise) . Sensor Board Error (Ke4/e5)?} 1-0

[Event "Uruguayan Championship 2022"]
[Site "Montevideo"]
[Date "2022.04.09"]
[Round "2.1"]
[White "Diaz Hollemaert, Nahuel"]
[Black "Carbone, Diego"]
[Result "1-0"]
[ECO "A05"]
[WhiteElo "2439"]
[BlackElo "2272"]
[Annotator "TA"]
[PlyCount "75"]
[EventDate "2022.04.08"]
[EventType "tourn"]
[EventCountry "URU"]
[SourceTitle "playchess.com"]
[Source "ChessBase"]
[SourceQuality "1"]
[TimeControl "40/5400+30:1800+30"]

{[%evp 17,75,0,25,22,35,6,25,0,-3,-3,22,25,31,3,32,10,40,35,41,35,33,31,77,28,72,69,61,78,125,108,108,94,227,143,230,0,225,218,208,0,7,-117,20,19,6,0,0,0,153,154,216,126,173,173,176,172,160,153,29973,29968]} 1. Nf3 {[%emt 0:02:36]} Nf6 {[%emt 0:02:27]} 2. c4 {[%emt 0:00:51]} g6 {[%emt 0:00:27]} 3. b3 {[%emt 0:00:14]} c5 {[%emt 0:01:00]} 4. Bb2 {[%emt 0:00:21]} Bg7 {[%emt 0:00:06]} 5. g3 {[%emt 0:02:10]} Nc6 {[%emt 0:01:16]} 6. Bg2 {[%emt 0:01:39]} d6 {[%emt 0:01:12]} 7. O-O {[%emt 0:07:06]} O-O {[%emt 0:02:49]} 8. Nc3 {[%emt 0:05:56]} e5 {[%emt 0:02:45]} 9. d3 {[%emt 0:13:23]} h6 {[%emt 0:03:39]} 10. e3 {[%emt 0:04:29] A38: Symmetrical English vs ...g6: 4 Bg2 Bg7 5 Nf3 Nf6.} Re8 {[%emt 0:02:53]} 11. a3 {[%emt 0:07:12]} Bf5 {[%emt 0:06:06] [#]} (11... Bg4 {feels hotter.} 12. Nd5 Qd7 13. Qc2 Bh3) 12. h3 $146 {[%emt 0:16:30] White has an edge.} ({Predecessor:} 12. Nd5 Nxd5 13. cxd5 Ne7 14. e4 Bd7 15. Nd2 b5 16. f4 exf4 17. Bxg7 Kxg7 18. gxf4 {0-1 (60) Ramon Pita,V (2206)-Pelikian,J (2403) Sao Paulo 2002}) 12... Qd7 {[%emt 0:05:29]} 13. Kh2 {[%emt 0:09:04]} Rad8 {[%emt 0:03:56]} 14. Nd5 {[%emt 0:01:59]} Nh7 {[%emt 0:04:09]} 15. Qd2 {[%emt 0:06:50]} Be6 {[%emt 0:16:30]} 16. b4 {[%emt 0:00:40]} b6 {[%emt 0:01:14][%cal Ob6b5]} 17. Ng1 {[%emt 0:04:16]} Ne7 {[%emt 0:10:42]} 18. Ne2 {[%emt 0:01:16]} f5 {[%emt 0:07:53]} 19. e4 {[%emt 0:02:11]} Nc6 {[%emt 0:05:22]} (19... fxe4 $14 {deserves consideration.} 20. dxe4 Nc6) 20. Rae1 {[%emt 0:03:06]} (20. exf5 $16 gxf5 21. Rae1) 20... Nd4 {[%emt 0:06:31]} 21. Nxd4 {[%emt 0:00:21]} cxd4 {[%emt 0:01:09]} 22. exf5 {[%emt 0:00:17]} Bxf5 {[%emt 0:03:41]} (22... gxf5 $142 23. b5 Qf7) 23. f4 $16 {[%emt 0:03:07]} h5 {[%emt 0:03:36]} 24. b5 {[%emt 0:00:45]} Rf8 {[%emt 0:01:34]} (24... exf4 $16 25. Nxf4 (25. gxf4 Nf8 $16) (25. Rxf4 Rxe1 26. Qxe1 Re8 $16) 25... Rxe1 26. Qxe1 (26. Rxe1 Be5 $16) 26... Be5) 25. Nb4 {[%emt 0:02:19]} Qc7 {[%emt 0:04:40]} (25... Bh6 $16 26. Qc2 Nf6) 26. Nd5 {[%emt 0:02:13]} Qd7 {[%emt 0:01:13]} 27. fxe5 {[%emt 0:00:09]} Bxe5 {[%emt 0:01:01] [#]} 28. h4 $2 {[%emt 0:01:29]} (28. Bxd4 $1 $18 {[%mdl 512]} Rde8 29. Bxe5 dxe5 30. a4) 28... Rde8 {[%emt 0:00:33]} 29. Rf2 {[%emt 0:00:50] [#]} (29. Nf4 $11 {keeps the balance.}) 29... Qg7 {[%emt 0:00:29]} (29... Qd8 $1 $17 {[%cal Rd8h4] And now ...Qxh4+ would win.} 30. Rf4 (30. Nf4 g5 $15) 30... g5 31. Rxf5 Rxf5) 30. Ref1 $11 {[%emt 0:00:26]} Bg4 {[%emt 0:00:31]} 31. Be4 {[%emt 0:01:02]} Rxf2+ {[%emt 0:00:19]} 32. Rxf2 {[%emt 0:00:25]} Nf8 $2 {[%emt 0:00:39]} (32... g5 $11 33. Kh1 Rf8) 33. Qg5 $16 {[%emt 0:00:30] 0x0.00264cf1c310dp-1022s more active pieces.} Re6 {[%emt 0:00:36]} (33... Be6 $16 34. Bc1 Kh8) 34. Kg2 {[%emt 0:00:33]} (34. Qd8 $18) 34... Qd7 {[%emt 0:00:28]} (34... Nd7 $16 {keeps fighting.}) 35. Nf6+ $18 {[%emt 0:00:34]} ({But not} 35. Qh6 Qg7 36. Qg5 Nd7 $16) 35... Bxf6 {[%emt 0:00:32]} 36. Rxf6 {[%emt 0:00:02]} Rxf6 {[%emt 0:00:30]} 37. Qxf6 {[%emt 0:00:03]} Qe6 $2 {[%emt 0:00:31]} (37... Ne6 $16 38. Bxd4 (38. Bxg6 Qg7 $16) 38... Nxd4) 38. Bd5 {[%emt 0:00:13] Weighted Error Value: White=0.39/Black=0.53} 1-0